{"text_format":"1","workbook":"xlsx","n_sheets":2,"sheets":["Dropdown","Seite 1"],"not_rendered":{"charts":0,"images":1,"macros":0,"external_links":0,"defined_names":0,"comments":0,"pivot_tables":0},"unopened":[],"bounds":{"document_bytes":16777216,"sheet_cells":100000,"rows_first":2000,"rows_last":500,"rows_between":2000,"halvings":0,"cell_chars":16384,"cell_head_chars":4096},"cells_cut":0,"cells_raw":0,"read":"whole","date_system":"1900"}

{"sheet":"Dropdown","index":0,"n_rows":7,"n_cols":29,"rows_kept":7,"cut":false,"hidden":true,"merged":[]}
["Angebot","Ja","Kalt","bauseits","drainline","Dusche 200 x 200 mm","TECEflex","Ja","Geschliffen","TECE Isolierung blau","TECE Isolierung rot","Uno, mit Farbset","UP, mit Farbset","Mit Farbset","Ja (Farbset enthalten)","Heizkörper","TECEflex","Ja (Mineralwolle)","TECLIT PS- Cold","Wavin SiTech","PP-Rohr","TECLIT LM Cold 30mm","Zu- und Abluftanlage","Limodor compact","TECLIT LM Cold 30mm","Ja","Ja","Ja","Anforderung unbekannt"]
["Ausschreibungsvorbereitung","Nein","Warm + Kalt","Hans Grohe I-Box","drainprofile","WC 250 x 500 mm","Edelstahl ","Nein / bauseits","Ringleitung (inkl. Hygienebox)","Mineralwolle 100 %","Mineralwolle ","Uno, ohne Farbset","UP, ohne Farbset","Ohne Farbset","Nein","FBH oder FRIWA","Edelstahl NiroTherm","Nein / bauseits","Armaflex-AF","Wavin AS+","Wavin SiTech","Armaflex AF-15mm","Lüfterkasten","Lunos 3/UP","Keine","Ja, optional","Ja, optional","Keine Anforderung","DIN 4109 Teil 1 (30 dB)"]
["Kostenschätzung","Bitte auswählen","Nein","Hansa Blue Box","drainpoint S","Sondermaß",null,null,"T-Stück","Nein / bauseits","Nein / bauseits","Duo, mit Farbset","AP  ","Nein","Bitte auswählen",null,null,null,"Nein / bauseits","SML","Wavin AS+","Nein / bauseits","Zentraler Abluftmotor (Aereco)","Maico ER-GH",null,"Nein / bauseits","Nein","Anforderung unbekannt","DIN 4109 Teil 5 (27 dB)"]
[null,null,"Bitte auswählen","Nein","Nein","Nein",null,null,"Bitte auswählen",null,null,"Duo, ohne Farbset","Nein","Bitte auswählen",null,null,null,null,null,null,null,null,null,"Helios ELS-GU",null,"Bitte auswählen","Bitte auswählen","Bitte auswählen","VDI 4100 (SST 1 30 dB)"]
[null,null,null,"Bitte auswählen","Bitte auswählen","Bitte auswählen",null,null,"Nein",null,null,"Nein","Bitte auswählen",null,null,null,null,null,null,null,null,null,null,"bauseits z. Verf. gestellt",null,null,null,null,"VDI 4100 (SST 2 27 dB)"]
[null,null,null,null,null,null,null,null,null,null,null,"Bitte auswählen",null,null,null,null,null,null,null,null,null,null,null,"--",null,null,null,null,"VDI 4100 (SST 3 24 dB)"]
[null,null,null,null,null,null,null,null,null,null,null,null,null,null,null,null,null,null,null,null,null,null,null,null,null,null,null,null,"Bitte auswählen"]

{"sheet":"Seite 1","index":1,"n_rows":177,"n_cols":15,"rows_kept":177,"cut":false,"hidden":false,"merged":[[169,1,173,19],[156,1,156,12],[156,14,156,19],[158,1,158,4],[158,14,158,19],[160,1,160,19],[162,1,162,12],[162,14,162,19],[164,1,164,12],[164,14,164,19],[166,1,167,19],[146,2,146,7],[146,14,146,19],[148,2,148,7],[148,14,148,19],[150,2,150,9],[150,14,150,19],[152,2,152,7],[152,14,152,19],[154,1,154,19],[136,1,136,19],[138,1,138,7],[138,14,138,19],[140,2,140,6],[140,14,140,19],[142,2,142,7],[142,14,142,19],[144,2,144,7],[144,14,144,19],[126,2,126,7],[126,14,126,19],[128,1,128,7],[128,14,128,19],[130,2,130,7],[130,14,130,19],[132,2,132,7],[132,14,132,19],[134,2,134,7],[134,14,134,19],[116,1,116,19],[118,1,118,7],[118,14,118,19],[120,2,120,7],[120,14,120,19],[122,2,122,7],[122,14,122,19],[124,1,124,7],[124,14,124,19],[106,1,106,9],[106,14,106,19],[108,1,108,9],[108,14,108,19],[110,2,110,7],[110,14,110,19],[112,2,112,7],[112,14,112,19],[114,2,114,7],[114,14,114,19],[96,2,96,7],[96,14,96,19],[98,2,98,7],[98,14,98,19],[100,1,100,7],[100,14,100,19],[102,2,102,7],[102,14,102,19],[104,2,104,7],[104,14,104,19],[86,2,86,10],[86,14,86,19],[88,1,88,19],[90,1,90,7],[90,14,90,19],[92,2,92,7],[92,14,92,19],[94,2,94,7],[94,14,94,19],[76,1,76,7],[76,14,76,19],[78,2,78,10],[78,14,78,19],[80,2,80,9],[80,14,80,19],[82,2,82,7],[82,14,82,19],[84,2,84,8],[84,14,84,19],[68,14,68,19],[70,2,70,7],[70,14,70,19],[72,2,72,7],[72,14,72,19],[74,2,74,5],[74,8,74,11],[74,12,74,13],[74,14,74,19],[0,13,1,19],[2,1,2,5],[3,1,3,19],[4,1,4,19],[6,1,6,7],[6,15,6,19],[28,1,28,7],[18,2,24,19],[16,1,16,7],[12,1,12,7],[12,15,12,19],[14,1,14,7],[14,15,14,19],[8,1,8,7],[10,1,10,7],[8,8,8,19],[10,8,10,19],[26,1,26,19],[176,17,176,19],[176,4,176,16],[42,8,42,12],[44,8,44,12],[40,8,40,19],[36,15,36,19],[44,13,44,14],[44,15,44,19],[46,8,46,19],[36,8,36,12],[38,8,38,12],[38,2,38,7],[40,2,40,7],[44,2,44,7],[58,1,58,19],[60,1,60,7],[60,14,60,19],[62,2,62,7],[62,14,62,19],[64,2,64,7],[64,14,64,19],[66,2,66,7],[66,14,66,19],[68,1,68,7],[46,2,46,7],[36,13,36,14],[28,8,28,12],[48,1,48,7],[50,2,56,19],[42,1,42,7],[36,1,36,7],[30,1,30,7],[32,1,32,7],[34,1,34,7],[30,8,30,12],[32,8,32,12],[34,8,34,12]]}
[null,null,null,null,null,null,null,null,null,null,null,null,null,"Abteilung:\nProjektvertrieb\nTel.: +49 2572 / 928 - 405\nE-Mail: angebot-projektvertrieb@tece.de"]
[]
[null,"i technische Information"]
[null,"Projekt Datenblatt TECEsystem"]
[null,"1. Daten zum Projekt"]
[]
[null,"Opportunity ID"]
[]
[null,"Projektbezeichnung"]
[]
[null,"Eingereicht von"]
[]
[null,"Datum der Anfrage"]
[]
[null,"Wunschtermin der Fertigstellung"]
[]
[null,"Allgemeine Hinweise"]
[]
[]
[]
[]
[]
[]
[]
[]
[]
[null,"2. Einbauteile"]
[]
[null,"TECEone Aufrüstet",null,null,null,null,null,null,"Bitte auswählen"]
[]
[null,"WC Hygienespülung",null,null,null,null,null,null,"Bitte auswählen"]
[]
[null,"UP-Grundkörper für Dusche / BW",null,null,null,null,null,null,"Bitte auswählen"]
[]
[null,"Duschentwässerung (ohne Fertigset)",null,null,null,null,null,null,"Bitte auswählen"]
[]
[null,"Holzplatten",null,null,null,null,null,null,"Sondermaß",null,null,null,null,{"$f":"IF(I37=\"Sondermaß\",\"Angabe\",\"\")","v":"Angabe"}]
[]
[null,null,"Stückzahl"]
[]
[null,null,"Anmerkungen"]
[]
[null,"Einbau bauseits gestellter Bauteile",null,null,null,null,null,null,"Bitte auswählen"]
[]
[null,null,"Bezeichnung",null,null,null,null,null,null,null,null,null,null,{"$f":"IF(I43=\"Bitte auswählen\",\"\",IF(I43=\"Nein\",\"\",\"Stückzahl\"))","v":""}]
[]
[null,null,"Anmerkungen"]
[]
[null,"Hinweise Einbauteile"]
[]
[]
[]
[]
[]
[]
[]
[]
[]
[null,"3. Trinkwasser TWK / TWW / TWZ"]
[]
[null,"Steigleitungen",null,null,null,null,null,null,null,null,null,null,null,null,"Ja"]
[]
[null,null,"Rohrmaterial",null,null,null,null,null,null,null,null,null,null,null,"TECEflex"]
[]
[null,null,"Dämmung",null,null,null,null,null,null,null,null,null,null,null,{"$f":"IF(O61=\"Ja\",\"Ja\",\"\")","v":"Ja"}]
[]
[null,null,"Brandschutz",null,null,null,null,null,null,null,null,null,null,null,{"$f":"IF(O61=\"Ja\",\"Ja\",\"\")","v":"Ja"}]
[]
[null,"Anbindeleitungen (in TECEflex)",null,null,null,null,null,null,null,null,null,null,null,null,"Bitte auswählen"]
[]
[null,null,"Dämmung Trinkwasser kalt",null,null,null,null,null,null,null,null,null,null,null,{"$f":"IF(O69=\"Bitte auswählen\",\"\",IF(O69=\"Ringleitung (inkl. Hygienebox)\",\"Mineralwolle 100 %\",\"TECE Isolierung blau\"))","v":""}]
[]
[null,null,"Dämmung Trinkwasser warm",null,null,null,null,null,null,null,null,null,null,null,{"$f":"IF(O69=\"Bitte auswählen\",\"\",IF(O69=\"Ringleitung (inkl. Hygienebox)\",\"Mineralwolle 100 %\",\"TECE Isolierung rot\"))","v":""}]
[]
[null,null,"TECE Baustopfen",null,null,null,"i",null,{"$f":"IF(H75=\"\",\"\",IF(H75=\"Nein\",\"\",\"Empfehlung: für Nasszelle \nBadewanne/Dusche\"))","v":""},null,null,null,{"$f":"IF(H75=\"\",\"\",IF(H75=\"Nein\",\"\",\"Stückzahl\"))","v":""}]
[]
[null,"Einbauteile",null,null,null,null,null,null,null,null,null,null,null,null,"Bitte auswählen"]
[]
[null,null,"Kemper UP-Zählereinheit inkl. Absperrventile",null,null,null,null,null,null,null,null,"i",null,null,"Bitte auswählen"]
[]
[null,null,"Kemper KHS Strömungsteiler dynamisch",null,null,null,null,null,null,null,"i",null,null,null,"Bitte auswählen"]
[]
[null,null,"UP-Absperrventil Grundkörper",null,null,null,null,null,"i",null,null,null,null,null,"Bitte auswählen"]
[]
[null,null,"Kemper Etagen-Zirkulationsventil",null,null,null,null,null,null,null,null,null,null,null,"Bitte auswählen"]
[]
[null,null,"Kugelhahn hinter bauseitiger Revi-Öffnung",null,null,null,null,null,null,null,null,null,null,null,"Bitte auswählen"]
[]
[null,"4. Heizung / FBH / Kälteleitungen"]
[]
[null,"Steigleitungen Heizung",null,null,null,null,null,null,null,null,null,null,null,null,"Bitte auswählen"]
[]
[null,null,"Art der Beheizung",null,null,null,null,null,null,null,null,null,null,null,{"$f":"IF(O91=\"Ja\",\"Heizkörper\",\"\")","v":""}]
[]
[null,null,"Rohrmaterial",null,null,null,null,null,null,null,null,null,null,null,{"$f":"IF(O91=\"Ja\",\"TECEflex\",\"\")","v":""}]
[]
[null,null,"Dämmung",null,null,null,null,null,null,null,null,null,null,null,{"$f":"IF(O91=\"Ja\",\"Ja\",\"\")","v":""}]
[]
[null,null,"Brandschutz",null,null,null,null,null,null,null,null,null,null,null,{"$f":"IF(O91=\"Ja\",\"Ja\",\"\")","v":""}]
[]
[null,"Anbindeleitungen",null,null,null,null,null,null,null,null,null,null,null,null,"Bitte auswählen"]
[]
[null,null,"Rohrmaterial",null,null,null,null,null,null,null,null,null,null,null,{"$f":"IF(O101=\"Ja\",\"TECEflex\",\"\")","v":""}]
[]
[null,null,"Dämmung",null,null,null,null,null,null,null,null,null,null,null,{"$f":"IF(O101=\"Ja\",\"Ja (Mineralwolle)\",\"\")","v":""}]
[]
[null,"Kugelhahn hinter bauseitiger Revi-Öffnung",null,null,null,null,null,null,null,null,null,null,null,null,"Bitte auswählen"]
[]
[null,"Steigleitungen Kälte",null,null,null,null,null,null,null,null,null,null,null,null,"Bitte auswählen"]
[]
[null,null,"Rohrmaterial",null,null,null,null,null,null,null,null,null,null,null,{"$f":"IF(O109=\"Ja\",\"TECEflex\",\"\")","v":""}]
[]
[null,null,"Dämmung",null,null,null,null,null,null,null,null,null,null,null,{"$f":"IF(O109=\"Ja\",\"TECLIT PS-Cold\",\"\")","v":""}]
[]
[null,null,"Brandschutz",null,null,null,null,null,null,null,null,null,null,null,{"$f":"IF(O109=\"Ja\",\"Ja\",\"\")","v":""}]
[]
[null,"5. Schmutz- und Regenwasser"]
[]
[null,"Schmutzwasser Fallleitungen",null,null,null,null,null,null,null,null,null,null,null,null,"Bitte auswählen"]
[]
[null,null,"Rohrmaterial",null,null,null,null,null,null,null,null,null,null,null,{"$f":"IF(O119=\"Ja\",\"Wavin SiTech\",\"\")","v":""}]
[]
[null,null,"Brandschutz",null,null,null,null,null,null,null,null,null,null,null,{"$f":"IF(O119=\"Ja\",\"Ja\",\"\")","v":""}]
[]
[null,"Schmutzwasser Anbindeleitungen",null,null,null,null,null,null,null,null,null,null,null,null,"Bitte auswählen"]
[]
[null,null,"Rohrmaterial",null,null,null,null,null,null,null,null,null,null,null,{"$f":"IF(O125=\"Ja\",\"PP-Rohr\",\"\")","v":""}]
[]
[null,"Regenwasser Fallleitungen",null,null,null,null,null,null,null,null,null,null,null,null,"Bitte auswählen"]
[]
[null,null,"Rohrmaterial",null,null,null,null,null,null,null,null,null,null,null,{"$f":"IF(O129=\"Ja\",\"Wavin SiTech\",\"\")","v":""}]
[]
[null,null,"Dämmung",null,null,null,null,null,null,null,null,null,null,null,{"$f":"IF(O129=\"Ja\",\"TECLIT LM Cold 30mm\",\"\")","v":""}]
[]
[null,null,"Brandschutz",null,null,null,null,null,null,null,null,null,null,null,{"$f":"IF(O129=\"Ja\",\"Ja\",\"\")","v":""}]
[]
[null,"6. Lüftung"]
[]
[null,"Lüftungsleitungen",null,null,null,null,null,null,null,null,null,null,null,null,"Bitte auswählen"]
[]
[null,null,"Art der Lüftungsanlage",null,null,null,null,"i",null,null,null,null,null,null,{"$f":"IF(O139=\"Ja\",\"Lüfterkasten\",\"\")","v":""}]
[]
[null,null,"Lüfterkasten",null,null,null,null,null,null,null,null,null,null,null,{"$f":"IF(O139=\"Ja\",\"Limodor compact\",\"\")","v":""}]
[]
[null,null,"Dämmung",null,null,null,null,null,null,null,null,null,null,null,{"$f":"IF(O139=\"Ja\",\"Keine\",\"\")","v":""}]
[]
[null,null,"Brandschutz",null,null,null,null,null,null,null,null,null,null,null,{"$f":"IF(O139=\"Ja\",\"Ja\",\"\")","v":""}]
[]
[null,null,"Rohrschalldämpfer 750/25",null,null,null,null,null,null,null,null,null,null,null,{"$f":"IF(O139=\"Ja\",\"Nein\",\"\")","v":""}]
[]
[null,null,"Revisionsenddeckel zum Kellergeschoss",null,null,null,null,null,null,null,null,null,null,null,{"$f":"IF(O139=\"Ja\",\"Nein\",\"\")","v":""}]
[]
[null,null,"Deckel mit Kondensatanschluss",null,null,null,null,null,null,null,null,null,null,null,{"$f":"IF(O139=\"Ja\",\"Nein\",\"\")","v":""}]
[]
[null,"7. Beplankung / Verlorene Schalung"]
[]
[null,"Beplankung 18 mm GKBI (inkl.WC-Beplankung vorgestanzt)",null,null,null,null,null,null,null,null,null,null,null,null,"Bitte auswählen"]
[]
[null,"Verlorene Schalung",null,null,null,"i",null,null,null,null,null,null,null,null,"Bitte auswählen"]
[]
[null,"8. Schallschutz - Brandschutz"]
[]
[null,"Schallschutzanforderung",null,null,null,null,null,null,null,null,null,null,null,null,"Bitte auswählen"]
[]
[null,"Brandschutzanforderung bei Raumtrennwänden",null,null,null,null,null,null,null,null,null,null,null,null,"Anforderung unbekannt"]
[]
[null,{"$f":"IF(O165=\"Ja\",\"TECE benötigt zur Angebotserstellung das Brandschutzkonzept oder detaillierte Angaben zu den Brandschutzanforderungen\",\"\")","v":""}]
[]
[]
[]
[]
[]
[]
[]
[]
[]
[null,null,null,null,"Letzte Aktualisierung 05/2024"]